fUST/lending_fUST_20240621
["ID","MTS","AMOUNT","RATE_DAILY","PERIOD"]
[330007332,1718926151132,-5000.0,0.00049,116]
[330007347,1718926217848,6251.59111112,0.00044238,2]
[330007348,1718926217872,655.65773698,0.00044238,2]
[330007367,1718926232520,-997.34836251,0.00051474,120]
[330007368,1718926232529,-5000.0,0.00053,116]
[330007369,1718926232538,-1750.0,0.00053668,2]
[330007370,1718926232548,-499.0,0.00053668,120]
[330007371,1718926232558,-1100.0,0.00054,120]
[330007372,1718926232567,-360.29,0.00054068,120]
[330007373,1718926232578,-8866.0,0.000543,120]
[330007374,1718926232589,-812.63068785,0.00054659,11]
[330007375,1718926232598,-5060.75402455,0.0005466,120]
[330007376,1718926232607,-205.20361679,0.00054664,2]
[330007377,1718926232617,-1638.95271645,0.00054664,28]
[330007378,1718926232626,-2000.0,0.00054694,2]
[330007379,1718926232635,-21218.04107297,0.00054694,5]
[330007380,1718926232644,-150.5,0.00054764,62]
[330007381,1718926232653,-150.5,0.00054774,62]
[330007383,1718926232662,-512.38342574,0.00054794,120]
[330007384,1718926232671,-500.0,0.00054794,120]
[330007385,1718926232680,-804.84,0.00054794,120]
[330007386,1718926232689,-500.0,0.00054794,120]
[330007387,1718926232698,-1463.91,0.00054794,120]
[330007388,1718926232707,-500.0,0.00054794,120]
[330007389,1718926232716,-500.0,0.00054794,120]
[330007390,1718926232725,-500.0,0.00054794,120]
[330007391,1718926232734,-500.0,0.00054794,120]
[330007392,1718926232744,-500.0,0.00054794,120]
[330007393,1718926232753,-500.0,0.00054794,120]
[330007394,1718926232854,-527.49,0.00054794,120]
[330007395,1718926232864,-500.0,0.00054794,120]
[330007396,1718926232874,-298.83459085,0.00054794,120]
[330007397,1718926232883,-500.0,0.00054794,120]
[330007398,1718926232893,-169.92105506,0.00054794,120]
[330007399,1718926232902,-500.0,0.00054794,120]
[330007400,1718926232911,-500.0,0.00054794,120]
[330007401,1718926232921,-1331.88,0.00054794,120]
[330007402,1718926232930,-500.0,0.00054794,120]
[330007403,1718926232940,-711.83,0.00054794,120]
[330007404,1718926232949,-250.0,0.00054794,120]
[330007405,1718926232959,-500.0,0.00054794,120]
[330007406,1718926232969,-500.0,0.00054794,120]
[330007407,1718926232979,-500.0,0.00054794,120]
[330007408,1718926232989,-584.89,0.00054794,120]
[330007409,1718926232998,-261.36687104,0.00054794,120]
[330007410,1718926233012,-238.63312896,0.00054794,120]
[330007411,1718926233021,-551.92524044,0.00054794,120]
[330007412,1718926233031,-500.0,0.00054794,120]
[330007413,1718926233041,-509.52395669,0.00054794,120]
[330007414,1718926233050,-500.0,0.00054794,120]
[330007415,1718926233059,-292.60855716,0.00054794,120]
[330007416,1718926233068,-407.27270575,0.00054794,2]
[330007417,1718926233082,-92.72729425,0.00054794,2]
[330007418,1718926233092,-600.49945447,0.00054794,120]
[330007419,1718926233101,-500.0,0.00054794,120]
[330007420,1718926233111,-5.33253138,0.00054794,120]
[330007431,1718926239342,-494.66746862,0.00054794,120]
[330007432,1718926239356,-500.0,0.00054794,120]
[330007433,1718926239370,-500.0,0.00054794,120]
[330007434,1718926239383,-2432.65,0.00054794,60]
[330007435,1718926239396,-500.0,0.00054794,120]
[330007436,1718926239410,-500.0,0.00054794,120]
[330007437,1718926239424,-409.954074,0.00054794,120]
[330007438,1718926239437,-500.0,0.00054794,120]
[330007439,1718926239450,-500.0,0.00054794,120]
[330007440,1718926239463,-500.0,0.00054794,120]
[330007441,1718926239475,-69.97730554,0.00054794,120]
[330007442,1718926239493,-430.02269446,0.00054794,120]
[330007443,1718926239508,-500.0,0.00054794,120]
[330007444,1718926239524,-1382.22,0.00054794,120]
[330007445,1718926239537,-525.42,0.00054794,120]
[330007446,1718926239551,-500.0,0.00054794,120]
[330007447,1718926239565,-500.0,0.00054794,120]
[330007448,1718926239581,-500.0,0.00054794,120]
[330007449,1718926239594,-500.0,0.00054794,120]
[330007450,1718926239606,-786.11,0.00054794,120]
[330007451,1718926239616,-500.0,0.00054794,120]
[330007452,1718926239626,-842.73,0.00054794,120]
[330007453,1718926239636,-500.0,0.00054794,120]
[330007454,1718926239646,-2200.39,0.00054794,120]
[330007455,1718926239657,-500.0,0.00054794,120]
[330007456,1718926239804,-500.0,0.00054794,120]
[330007457,1718926239827,-2577.43,0.00054794,120]
[330007458,1718926239837,-322.50051869,0.00054794,120]
[330007459,1718926239848,-500.0,0.00054794,120]
[330007460,1718926239858,-500.0,0.00054794,120]
[330007461,1718926239869,-500.0,0.00054794,120]
[330007462,1718926239879,-500.0,0.00054794,120]
[330007463,1718926239889,-500.0,0.00054794,120]
[330007464,1718926239900,-500.0,0.00054794,2]
[330007465,1718926239910,-500.0,0.00054794,120]
[330007466,1718926239924,-500.0,0.00054794,120]
[330007467,1718926239935,-500.0,0.00054794,120]
[330007468,1718926239945,-500.0,0.00054794,120]
[330007469,1718926239955,-500.0,0.00054794,120]
[330007470,1718926239965,-1446.2,0.00054794,120]
[330007471,1718926239976,-591.36,0.00054794,7]
[330007472,1718926239987,-500.0,0.00054794,120]
[330007473,1718926239998,-430.0848862,0.00054794,120]
[330007474,1718926240009,-500.0,0.00054794,120]
[330007475,1718926240021,-500.0,0.00054794,120]
[330007476,1718926240032,-500.0,0.00054794,120]
[330007477,1718926240042,-887.74,0.00054794,120]
[330007478,1718926240052,-500.0,0.00054794,120]
[330007479,1718926240063,-500.0,0.00054794,120]
[330007480,1718926240074,-623.32,0.00054794,120]
[330007482,1718926240084,-505.79444727,0.00054794,120]
[330007484,1718926240095,-500.0,0.00054794,120]
[330007485,1718926240105,-500.0,0.00054794,120]
[330007486,1718926240115,-1794.24,0.00054794,120]
[330007487,1718926240125,-1976.21,0.00054794,120]
[330007488,1718926240135,-500.0,0.00054794,120]
[330007489,1718926240145,-500.0,0.00054794,120]
[330007490,1718926240155,-500.0,0.00054794,120]
[330007491,1718926240166,-500.0,0.00054794,120]
[330007492,1718926240176,-500.0,0.00054794,120]
[330007493,1718926240187,-500.0,0.00054794,120]
[330007494,1718926240198,-500.0,0.00054794,120]
[330007495,1718926240208,-510.48259035,0.00054794,120]
[330007496,1718926240219,-500.0,0.00054794,120]
[330007497,1718926240229,-500.0,0.00054794,120]
[330007498,1718926240239,-608.1,0.00054794,120]
[330007499,1718926240250,-519.69390465,0.00054794,120]
[330007500,1718926240260,-907.43,0.00054794,120]
[330007501,1718926240271,-1621.38,0.00054794,120]
[330007502,1718926240281,-500.0,0.00054794,120]
[330007504,1718926240291,-500.0,0.00054794,120]
[330007505,1718926240302,-500.0,0.00054794,120]
[330007507,1718926240312,-500.0,0.00054794,120]
[330007509,1718926240322,-500.0,0.00054794,120]
[330007511,1718926240333,-772.6,0.00054794,120]
[330007513,1718926240343,-2218.88,0.00054794,120]
[330007515,1718926240353,-500.0,0.00054794,120]
[330007516,1718926240363,-500.0,0.00054794,120]
[330007517,1718926240373,-500.0,0.00054794,120]
[330007518,1718926240383,-500.0,0.00054794,120]
[330007519,1718926240394,-500.0,0.00054794,120]
[330007520,1718926240404,-500.0,0.00054794,120]
[330007521,1718926240413,-500.0,0.00054794,120]
[330007522,1718926240424,-500.0,0.00054794,120]
[330007523,1718926240434,-594.65071846,0.00054794,120]
[330007524,1718926240444,-926.03,0.00054794,120]
[330007525,1718926240454,-500.0,0.00054794,120]
[330007526,1718926240463,-502.77305825,0.00054794,120]
[330007527,1718926240473,-500.0,0.00054794,120]
[330007528,1718926240483,-500.0,0.00054794,120]
[330007529,1718926240493,-500.0,0.00054794,120]
[330007530,1718926240503,-178.37014474,0.00054794,120]
[330007531,1718926240518,-500.0,0.00054794,120]
[330007532,1718926240528,-1000.0,0.00054794,120]
[330007533,1718926240538,-592.27,0.00054794,120]
[330007534,1718926240548,-500.0,0.00054794,120]
[330007535,1718926240557,-500.0,0.00054794,120]
[330007536,1718926240567,-583.99,0.00054794,120]
[330007537,1718926240578,-500.0,0.00054794,120]
[330007538,1718926240590,-1138.05,0.00054794,120]
[330007539,1718926240600,-1625.07,0.00054794,120]
[330007540,1718926240610,-500.0,0.00054794,120]
[330007541,1718926240619,-500.0,0.00054794,120]
[330007542,1718926240629,-515.10463892,0.00054794,120]
[330007543,1718926240639,-18412.16,0.00054794,120]
[330007544,1718926240649,-236.5197406,0.00054794,120]
[330007545,1718926240659,-500.0,0.00054794,120]
[330007546,1718926240669,-665.01,0.00054794,120]
[330007547,1718926240678,-500.0,0.00054794,120]
[330007548,1718926240688,-515.73513593,0.00054794,120]
[330007549,1718926240698,-553.84,0.00054794,120]
[330007550,1718926240708,-500.0,0.00054794,120]
[330007551,1718926240718,-495.93375326,0.00054794,120]
[330007552,1718926240727,-7300.43,0.00054794,120]
[330007553,1718926240737,-500.0,0.00054794,120]
[330007554,1718926240747,-500.0,0.00054794,120]
[330007555,1718926240757,-500.0,0.00054794,120]
[330007556,1718926240768,-1664.81,0.00054794,120]
[330007557,1718926240778,-500.0,0.00054794,120]
[330007558,1718926240787,-500.0,0.00054794,120]
[330007559,1718926240797,-500.0,0.00054794,120]
[330007560,1718926240808,-956.94,0.00054794,120]
[330007561,1718926240818,-531.62684059,0.00054794,120]
[330007562,1718926240828,-1257.74,0.00054794,120]
[330007563,1718926240838,-500.0,0.00054794,30]
[330007564,1718926240849,-1875.58,0.00054794,120]
[330007565,1718926240859,-3238.33,0.00054794,120]
[330007566,1718926240869,-1651.53,0.00054794,120]
[330007567,1718926240879,-1940.61,0.00054794,120]
[330007568,1718926240889,-500.0,0.00054794,120]
[330007569,1718926240900,-652.83,0.00054794,120]
[330007570,1718926240910,-1688.9,0.00054794,120]
[330007571,1718926240921,-593.08,0.00054794,120]
[330007572,1718926240931,-54084.71,0.00054794,120]
[330007573,1718926240941,-608.5,0.00054794,120]
[330007574,1718926240951,-830.19,0.00054794,120]
[330007575,1718926240961,-1240.78,0.00054794,120]
[330007576,1718926240972,-1163.98,0.00054794,120]
[330007577,1718926240983,-500.0,0.00054794,120]
[330007578,1718926240993,-500.0,0.00054794,120]
[330007579,1718926241004,-500.0,0.00054794,120]
[330007580,1718926241014,-500.0,0.00054794,120]
[330007581,1718926241024,-500.0,0.00054794,120]
[330007582,1718926241035,-4357.65,0.00054794,21]
[330007583,1718926241045,-500.0,0.00054794,120]
[330007584,1718926241056,-500.0,0.00054794,120]
[330007585,1718926241067,-500.0,0.00054794,120]
[330007586,1718926241078,-500.0,0.00054794,120]
[330007587,1718926241088,-1366.79,0.00054794,120]
[330007588,1718926241098,-1057.54,0.00054794,120]
[330007589,1718926241108,-500.0,0.00054794,120]
[330007590,1718926241118,-1134.23,0.00054794,120]
[330007591,1718926241128,-8273.88,0.00054794,120]
[330007592,1718926241138,-500.0,0.00054794,120]
[330007593,1718926241149,-500.0,0.00054794,120]
[330007594,1718926241160,-500.0,0.00054794,120]
[330007595,1718926241170,-391.49373107,0.00054794,120]
[330007596,1718926241180,-7472.12,0.00054794,120]
[330007597,1718926241190,-1622.42,0.00054794,120]
[330007598,1718926241200,-512.49,0.00054794,120]
[330007599,1718926241210,-1397.45,0.00054794,120]
[330007600,1718926241219,-2414.95,0.00054794,120]
[330007601,1718926241229,-500.0,0.00054794,120]
[330007602,1718926241238,-500.0,0.00054794,120]
[330007603,1718926241247,-500.0,0.00054794,120]
[330007604,1718926241257,-688.37,0.00054794,120]
[330007605,1718926241278,-500.0,0.00054794,90]
[330007606,1718926241289,-500.0,0.00054794,120]
[330007607,1718926241299,-721.73,0.00054794,120]
[330007608,1718926241310,-500.0,0.00054794,120]
[330007609,1718926241321,-346.59848142,0.00054794,120]
[330007610,1718926241338,-2410.48,0.00054794,120]
[330007611,1718926241357,-500.0,0.00054794,120]
[330007612,1718926241368,-1285.09,0.00054794,120]
[330007613,1718926241379,-500.0,0.00054794,120]
[330007614,1718926241390,-500.0,0.00054794,120]
[330007615,1718926241400,-771.5,0.00054794,120]
[330007616,1718926241411,-505.57757035,0.00054794,120]
[330007617,1718926241421,-430.87503417,0.00054794,120]
[330007618,1718926241431,-8748.13,0.00054794,120]
[330007619,1718926241442,-500.0,0.00054794,120]
[330007620,1718926241452,-500.0,0.00054794,120]
[330007621,1718926241462,-1194.8,0.00054794,120]
[330007622,1718926241472,-501.42818865,0.00054794,120]
[330007623,1718926241481,-502.66,0.00054794,120]
[330007624,1718926241491,-798.79,0.00054794,120]
[330007625,1718926241501,-9859.35,0.00054794,120]
[330007626,1718926241514,-9859.35,0.00054794,120]
[330007627,1718926241524,-9859.35,0.00054794,120]
[330007628,1718926241534,-9859.35,0.00054794,120]
[330007629,1718926241545,-500.0,0.00054794,7]
[330007630,1718926241555,-24298.54,0.00054794,120]
[330007631,1718926241565,-500.0,0.00054794,120]
[330007632,1718926241576,-500.0,0.00054794,120]
[330007633,1718926241588,-208.50340544,0.00054794,120]
[330007634,1718926241598,-646.53,0.00054794,120]
[330007635,1718926241609,-2058.7,0.00054794,120]
[330007636,1718926241619,-500.0,0.00054794,120]
[330007637,1718926241629,-500.0,0.00054794,120]
[330007638,1718926241639,-500.0,0.00054794,120]
[330007639,1718926241650,-500.0,0.00054794,120]
[330007640,1718926241660,-500.0,0.00054794,120]
[330007641,1718926241670,-719.82,0.00054794,120]
[330007642,1718926241680,-618.38,0.00054794,120]
[330007643,1718926241690,-500.0,0.00054794,120]
[330007644,1718926241700,-500.0,0.00054794,120]
[330007645,1718926241710,-548.11,0.00054794,120]
[330007646,1718926241720,-500.0,0.00054794,120]
[330007647,1718926241731,-500.0,0.00054794,120]
[330007648,1718926241741,-500.0,0.00054794,120]
[330007649,1718926241752,-718.95,0.00054794,120]
[330007650,1718926241762,-500.0,0.00054794,120]
[330007651,1718926241773,-5486.47,0.00054794,120]
[330007652,1718926241783,-1894.01,0.00054794,120]
[330007653,1718926241793,-500.0,0.00054794,120]
[330007654,1718926241803,-500.0,0.00054794,120]
[330007655,1718926241814,-500.0,0.00054794,120]
[330007656,1718926241824,-1181.04,0.00054794,120]
[330007657,1718926241834,-4821.2,0.00054794,120]
[330007658,1718926241844,-264.2229839,0.00054794,120]
[330007659,1718926241854,-274.78572379,0.00054794,120]
[330007660,1718926241863,-500.0,0.00054794,120]
[330007661,1718926241873,-2837.89,0.00054794,120]
[330007662,1718926241883,-500.0,0.00054794,120]
[330007663,1718926241893,-500.0,0.00054794,120]
[330007664,1718926241902,-500.0,0.00054794,120]
[330007665,1718926241913,-500.0,0.00054794,120]
[330007666,1718926241923,-500.0,0.00054794,60]
[330007667,1718926241933,-500.0,0.00054794,120]
[330007668,1718926241942,-5060.75402455,0.00054875,120]
[330007669,1718926241953,-252.0,0.00055,34]
[330007670,1718926241962,-160.0,0.00055,50]
[330007671,1718926241972,-1000.0,0.00055,120]
[330007672,1718926241982,-150.5,0.00055058,62]
[330007673,1718926241991,-1047.54,0.00055063,120]
[330007674,1718926242002,-2357.54,0.00055063,60]
[330007675,1718926242012,-2357.54,0.00055063,60]
[330007676,1718926242022,-2357.54,0.00055063,60]
[330007677,1718926242032,-2357.54,0.00055063,60]
[330007678,1718926242042,-2357.54,0.00055063,60]
[330007679,1718926242051,-2357.54,0.00055063,60]
[330007680,1718926242061,-2357.54,0.00055063,60]
[330007681,1718926242070,-2357.54,0.00055063,60]
[330007682,1718926242080,-2357.54,0.00055063,60]
[330007683,1718926242090,-2357.54,0.00055063,60]
[330007684,1718926242100,-2357.54,0.00055063,60]
[330007685,1718926242110,-2357.54,0.00055063,60]
[330007686,1718926242120,-2357.54,0.00055063,60]
[330007687,1718926242130,-2357.54,0.00055063,60]
[330007688,1718926242140,-2357.54,0.00055063,60]
[330007689,1718926242151,-2357.54,0.00055063,60]
[330007690,1718926242161,-2357.54,0.00055063,60]
[330007691,1718926242171,-2357.54,0.00055063,60]
[330007692,1718926242285,-2357.54,0.00055063,60]
[330007693,1718926242295,-2357.54,0.00055063,60]
[330007694,1718926242304,-2357.54,0.00055063,60]
[330007695,1718926242313,-2357.54,0.00055063,60]
[330007696,1718926242323,-2357.54,0.00055063,60]
[330007697,1718926242333,-2357.66193404,0.00055063,60]
[330007698,1718926242343,-9859.35,0.00055063,120]
[330007699,1718926242352,-940.32625,0.00055067,120]
[330007700,1718926242361,-940.32625,0.00055067,120]
[330007701,1718926242371,-151.0,0.00055067,120]
[330007702,1718926242380,-236.427274,0.00055067,120]
[330007703,1718926242389,-9859.35,0.00055067,120]
[330007704,1718926242398,-9859.35,0.00055067,120]
[330007705,1718926242407,-9859.35,0.00055067,120]
[330007706,1718926242417,-9859.35,0.00055067,120]
[330007707,1718926242426,-151.0,0.00055067,120]
[330007708,1718926242435,-151.0,0.00055067,120]
[330007709,1718926242444,-500.0,0.00055068,120]
[330007710,1718926242454,-500.0,0.00055068,120]
[330007711,1718926242463,-1463.91,0.00055068,120]
[330007712,1718926242472,-500.0,0.00055068,120]
[330007713,1718926242482,-500.0,0.00055068,120]
[330007714,1718926242491,-500.0,0.00055068,120]
[330007715,1718926242501,-499.91626659,0.00055068,120]
[330007716,1718926242514,-527.49,0.00055068,120]
[330007717,1718926242524,-500.0,0.00055068,120]
[330007718,1718926242534,-1331.88,0.00055068,120]
[330007719,1718926242543,-500.0,0.00055068,120]
[330007720,1718926242554,-711.83,0.00055068,120]
[330007721,1718926242564,-250.0,0.00055068,120]
[330007722,1718926242574,-500.0,0.00055068,120]
[330007723,1718926242584,-500.0,0.00055068,120]
[330007724,1718926242596,-584.89,0.00055068,120]
[330007725,1718926242606,-500.0,0.00055068,120]
[330007726,1718926242616,-500.0,0.00055068,120]
[330007727,1718926242626,-536.97547353,0.00055068,120]
[330007728,1718926242635,-500.0,0.00055068,2]
[330007729,1718926242644,-500.0,0.00055068,120]
[330007730,1718926242654,-500.0,0.00055068,120]
[330007731,1718926242664,-500.0,0.00055068,120]
[330007732,1718926242674,-500.0,0.00055068,120]
[330007733,1718926242684,-2432.65,0.00055068,60]
[330007734,1718926242694,-500.0,0.00055068,120]
[330007735,1718926242704,-500.0,0.00055068,120]
[330007736,1718926242713,-500.0,0.00055068,120]
[330007737,1718926242723,-504.43232428,0.00055068,120]
[330007738,1718926242733,-500.0,0.00055068,120]
[330007739,1718926242742,-1382.22,0.00055068,120]
[330007740,1718926242752,-525.42,0.00055068,120]
[330007741,1718926242764,-500.0,0.00055068,120]
[330007742,1718926242774,-786.11,0.00055068,120]
[330007743,1718926242785,-387.9305066,0.00055068,120]
[330007744,1718926242795,-842.73,0.00055068,120]
[330007745,1718926242805,-500.0,0.00055068,120]
[330007746,1718926242814,-260.394515,0.00055068,120]
[330007747,1718926242824,-2200.39,0.00055068,120]
[330007748,1718926242834,-500.0,0.00055068,33]
[330007749,1718926242844,-500.0,0.00055068,120]
[330007750,1718926242854,-2577.43,0.00055068,120]
[330007751,1718926242864,-500.0,0.00055068,120]
[330007752,1718926242874,-500.0,0.00055068,120]
[330007753,1718926242883,-500.0,0.00055068,2]
[330007754,1718926242893,-500.0,0.00055068,120]
[330007756,1718926242903,-500.0,0.00055068,120]
[330007757,1718926242914,-500.0,0.00055068,120]
[330007758,1718926242923,-151.0,0.00055068,120]
[330007759,1718926242934,-500.0,0.00055068,120]
[330007760,1718926242943,-1446.2,0.00055068,120]
[330007761,1718926242954,-591.36,0.00055068,7]
[330007762,1718926242964,-500.0,0.00055068,120]
[330007763,1718926242974,-500.0,0.00055068,120]
[330007764,1718926242984,-887.74,0.00055068,120]
[330007765,1718926242993,-500.0,0.00055068,120]
[330007766,1718926243003,-623.32,0.00055068,120]
[330007767,1718926243012,-500.0,0.00055068,120]
[330007768,1718926243021,-500.0,0.00055068,120]
[330007770,1718926243030,-1794.24,0.00055068,120]
[330007771,1718926243039,-1976.21,0.00055068,120]
[330007772,1718926243049,-500.0,0.00055068,120]
[330007773,1718926243059,-500.0,0.00055068,120]
[330007775,1718926243068,-549.76624036,0.00055068,120]
[330007777,1718926243079,-500.0,0.00055068,120]
[330007778,1718926243088,-500.0,0.00055068,120]
[330007779,1718926243099,-500.0,0.00055068,120]
[330007780,1718926243108,-151.0,0.00055068,120]
[330007781,1718926243118,-151.0,0.00055068,120]
[330007782,1718926243127,-500.0,0.00055068,120]
[330007783,1718926243137,-500.0,0.00055068,120]
[330007784,1718926243147,-608.1,0.00055068,120]
[330007785,1718926243157,-907.43,0.00055068,120]
[330007786,1718926243166,-1621.38,0.00055068,120]
[330007787,1718926243175,-500.0,0.00055068,120]
[330007788,1718926243185,-500.0,0.00055068,120]
[330007789,1718926243195,-772.6,0.00055068,120]
[330007790,1718926243204,-2218.88,0.00055068,120]
[330007791,1718926243214,-500.0,0.00055068,120]
[330007792,1718926243223,-186.159723,0.00055068,120]
[330007794,1718926243232,-186.159723,0.00055068,120]
[330007795,1718926243242,-186.159723,0.00055068,120]
[330007797,1718926243251,-186.159723,0.00055068,120]
[330007799,1718926243260,-634.25630372,0.00055068,120]
[330007801,1718926243270,-577.95516273,0.00055068,120]
[330007803,1718926243279,-500.0,0.00055068,120]
[330007804,1718926243288,-466.056594,0.00055068,120]
[330007805,1718926243298,-466.056594,0.00055068,120]
[330007806,1718926243307,-926.03,0.00055068,120]
[330007807,1718926243316,-466.056594,0.00055068,120]
[330007808,1718926243326,-466.056594,0.00055068,120]
[330007809,1718926243336,-500.0,0.00055068,120]
[330007810,1718926243347,-500.0,0.00055068,120]
[330007811,1718926243356,-500.0,0.00055068,120]
[330007812,1718926243365,-151.0,0.00055068,120]
[330007813,1718926243375,-151.0,0.00055068,120]
[330007814,1718926243384,-592.27,0.00055068,120]
[330007815,1718926243393,-500.0,0.00055068,120]
[330007816,1718926243403,-583.99,0.00055068,120]
[330007817,1718926243413,-500.0,0.00055068,120]
[330007818,1718926243423,-1138.05,0.00055068,120]
[330007819,1718926243432,-1625.07,0.00055068,120]
[330007820,1718926243442,-500.0,0.00055068,120]
[330007821,1718926243451,-18412.16,0.00055068,120]
[330007822,1718926243461,-665.01,0.00055068,120]
[330007823,1718926243470,-246.9236,0.00055068,120]
[330007824,1718926243480,-246.9236,0.00055068,120]
[330007825,1718926243489,-500.0,0.00055068,120]
[330007826,1718926243499,-246.9236,0.00055068,120]
[330007827,1718926243508,-246.9236,0.00055068,120]
[330007828,1718926243521,-553.84,0.00055068,120]
[330007829,1718926243532,-500.0,0.00055068,120]
[330007830,1718926243542,-7300.43,0.00055068,120]
[330007831,1718926243551,-500.0,0.00055068,120]
[330007832,1718926243561,-508.99948502,0.00055068,120]
[330007833,1718926243572,-508.45709867,0.00055068,120]
[330007834,1718926243583,-1664.81,0.00055068,120]
[330007835,1718926243593,-500.0,0.00055068,120]
[330007836,1718926243603,-500.0,0.00055068,120]
[330007837,1718926243612,-151.0,0.00055068,120]
[330007838,1718926243622,-151.0,0.00055068,120]
[330007839,1718926243631,-500.0,0.00055068,120]
[330007840,1718926243641,-956.94,0.00055068,120]
[330007841,1718926243651,-151.0,0.00055068,120]
[330007842,1718926243660,-1257.74,0.00055068,120]
[330007843,1718926243669,-500.0,0.00055068,30]
[330007844,1718926243679,-1875.58,0.00055068,120]
[330007845,1718926243688,-2626.30250023,0.00055068,120]
[330007846,1718926243708,-612.02749977,0.00055068,120]
[330007847,1718926243718,-496.76224096,0.00055068,120]
[330007848,1718926243730,-1154.76775904,0.00055068,120]
[330007849,1718926243740,-1940.61,0.00055068,120]
[330007850,1718926243750,-652.83,0.00055068,120]
[330007851,1718926243760,-500.0,0.00055068,120]
[330007852,1718926243770,-1688.9,0.00055068,120]
[330007853,1718926243779,-593.08,0.00055068,120]
[330007854,1718926243789,-54084.71,0.00055068,120]
[330007855,1718926243799,-608.5,0.00055068,120]
[330007856,1718926243808,-830.19,0.00055068,120]
[330007857,1718926243818,-471.446676,0.00055068,120]
[330007858,1718926243828,-471.446676,0.00055068,120]
[330007859,1718926243838,-1240.78,0.00055068,120]
[330007860,1718926243848,-1163.98,0.00055068,120]
[330007861,1718926243858,-500.0,0.00055068,120]
[330007862,1718926243868,-500.0,0.00055068,120]
[330007863,1718926243877,-471.446676,0.00055068,120]
[330007864,1718926243887,-471.446676,0.00055068,120]
[330007865,1718926243897,-4357.65,0.00055068,21]
[330007866,1718926243907,-500.0,0.00055068,120]
[330007867,1718926243916,-500.0,0.00055068,120]
[330007868,1718926243926,-500.0,0.00055068,120]
[330007869,1718926243936,-500.0,0.00055068,120]
[330007870,1718926243945,-1366.79,0.00055068,120]
[330007871,1718926243955,-1057.54,0.00055068,120]
[330007872,1718926243964,-1134.23,0.00055068,120]
[330007873,1718926243974,-8273.88,0.00055068,120]
[330007874,1718926243984,-500.0,0.00055068,120]
[330007875,1718926243994,-151.0,0.00055068,120]
[330007876,1718926244003,-151.0,0.00055068,120]
[330007877,1718926244013,-500.0,0.00055068,120]
[330007878,1718926244022,-7472.12,0.00055068,120]
[330007879,1718926244031,-1622.42,0.00055068,120]
[330007880,1718926244041,-512.49,0.00055068,120]
[330007881,1718926244051,-1397.45,0.00055068,120]
[330007882,1718926244060,-2414.95,0.00055068,120]
[330007883,1718926244070,-500.0,0.00055068,120]
[330007884,1718926244080,-500.0,0.00055068,120]
[330007885,1718926244089,-500.0,0.00055068,90]
[330007886,1718926244099,-721.73,0.00055068,120]
[330007887,1718926244108,-500.0,0.00055068,120]
[330007888,1718926244117,-2410.48,0.00055068,120]
[330007889,1718926244127,-688.37,0.00055068,120]
[330007890,1718926244136,-940.32625,0.00055068,120]
[330007891,1718926244145,-500.0,0.00055068,120]